bitfinex-derivatives/quotes_ETHF0:USTF0_20240901
["timestamp","ask_amount","ask_price","bid_price","bid_amount"]
[1725232299442,0.00622136,2412.7,2412.2,0.00622136]
[1725232299845,0.42068136,2412.7,2412.2,0.00622136]
[1725232300150,0.41447,2412.6,2412.2,0.00622136]
[1725232300348,3.2078,2412.6,2412.2,0.00622136]
[1725232300639,0.00622136,2412.7,2412.2,0.00622136]
[1725232300640,0.41448,2412.5,2412.2,0.00622136]
[1725232300848,0.42068136,2412.7,2412.2,0.42074136]
[1725232301050,0.00622136,2412.7,2412.2,0.00622136]
[1725232301244,0.00622136,2412.7,2412.4,0.4145]
[1725232301744,0.42067136,2412.7,2412.2,0.42074136]
[1725232302046,0.00622136,2412.7,2412.2,7.35882136]
[1725232302353,0.00622136,2412.7,2412.5,0.41447]
[1725232302847,0.00622136,2412.7,2412.5,4.55927]
[1725232303146,0.00622136,2412.7,2412.6,0.41446]
[1725232303636,3.2078,2413.4,2412.9,0.4144]
[1725232303944,3.2078,2413.4,2412.7,1.08144]
[1725232304345,0.41439,2413.1,2412.7,0.667]
[1725232304547,3.2078,2413.4,2412.7,0.667]
[1725232304756,0.42057136,2413.3,2412.8,0.41442]
[1725232305248,0.41437,2413.2,2412.8,0.41442]
[1725232305442,0.42057136,2413.3,2412.8,0.41442]
[1725232305643,0.00622136,2413.3,2413.0,0.41438]
[1725232305856,0.42057136,2413.3,2412.8,0.41442]
[1725232306040,3.2078,2413.2,2412.8,0.41442]
[1725232306240,0.00622136,2413.3,2412.8,3.2078]
[1725232306443,0.00622136,2413.3,2413.1,3.2078]
[1725232306647,0.00622136,2413.3,2413.2,0.41436]
[1725232306942,3.98,2414.2,2413.5,0.4143]
[1725232307138,3.98,2414.2,2413.1,9.2078]
[1725232307139,0.41426,2413.8,2413.3,0.4144]
[1725232307546,3.98,2414.2,2413.4,3.2078]
[1725232307751,0.6706,2414.5,2413.7,3.2078]
[1725232307940,0.00622136,2414.3,2413.9,0.42045136]
[1725232308145,0.00622136,2414.3,2413.9,0.00622136]
[1725232308446,0.41419,2414.2,2413.9,0.00622136]
[1725232308749,0.00622136,2414.3,2413.9,0.42045136]
[1725232309048,0.00622136,2414.3,2414.0,0.41422]
[1725232309249,0.00622136,2414.3,2414.2,0.41419]
[1725232309847,0.00622136,2414.3,2414.1,3.622]
[1725232310154,0.00622136,2414.3,2414.2,0.41419]
[1725232310351,0.00622136,2414.3,2414.2,4.55659]
[1725232311153,0.00622136,2414.3,2414.2,4.1424]
[1725232311347,3.8451,2415.5,2414.2,10.1424]
[1725232311553,3.8451,2415.5,2414.0,0.89559747]
[1725232311554,0.41408,2414.9,2414.5,3.2078]
[1725232311853,0.644,2415.3,2414.5,3.2078]
[1725232312048,0.41404,2415.1,2414.6,0.41412]
[1725232312447,0.41811313,2415.1,2414.6,0.41412]
[1725232312846,0.00407313,2415.1,2414.7,0.4141]
[1725232313046,0.41811313,2415.1,2414.6,0.41411]
[1725232313854,0.00407313,2415.1,2414.7,0.4141]
[1725232314052,0.00407313,2415.1,2414.8,0.41409]
[1725232314249,0.00407313,2415.1,2414.8,3.62189]
[1725232314444,0.00407313,2415.1,2414.8,0.41408]
[1725232314650,0.00407313,2415.1,2414.9,3.2078]
[1725232314845,0.00407313,2415.1,2415.0,0.41405]
[1725232315153,0.00407313,2415.1,2414.9,3.2078]
[1725232315356,0.00407313,2415.1,2414.6,1.07431]
[1725232315649,0.41812313,2415.1,2414.6,3.868]
[1725232315854,0.41812313,2415.1,2414.7,0.4141]
[1725232316053,0.41812313,2415.1,2414.6,3.868]
[1725232316054,0.41405,2415.0,2414.6,3.868]
[1725232316251,0.00407313,2415.1,2414.6,3.2078]
[1725232316452,0.4141,2414.7,2414.6,3.2078]
[1725232316657,0.4141,2414.7,2414.0,0.6864]
[1725232316658,7.1878,2414.8,2414.2,3.2078]
[1725232316852,0.41415,2414.5,2414.2,3.2078]
[1725232317054,0.41417,2414.3,2414.2,3.2078]
[1725232317250,7.1878,2414.8,2414.2,3.2078]
[1725232317251,0.41415,2414.5,2414.2,3.2078]
[1725232317453,0.41417,2414.4,2414.2,3.2078]
[1725232317653,0.41417,2414.3,2414.2,3.2078]
[1725232317861,0.41415,2414.5,2414.2,3.2078]
[1725232318155,5.78753859,2414.7,2414.0,0.6864]
[1725232318658,0.41417,2414.4,2414.0,0.6864]
[1725232319250,0.41415,2414.5,2414.1,0.4142]
[1725232319652,0.41416,2414.4,2414.0,4.30842]
[1725232320151,0.41416,2414.4,2414.0,0.6864]
[1725232320562,0.41415,2414.5,2414.0,0.6864]
[1725232320749,0.41415,2414.5,2414.0,3.8942]
[1725232320951,0.41419,2414.2,2414.0,0.6864]
[1725232321148,7.1878,2414.8,2413.9,0.00622136]
[1725232321351,1.03519,2414.9,2413.9,0.00622136]
[1725232321352,0.41422,2414.0,2413.9,0.00622136]
[1725232321557,0.41422,2414.1,2413.9,0.00622136]
[1725232322151,3.98,2414.5,2413.9,0.00622136]
[1725232322152,0.4142,2414.2,2413.9,0.00622136]
[1725232322354,3.98,2414.5,2413.9,0.00622136]
[1725232322553,0.41422,2414.0,2413.9,0.00622136]
[1725232323063,10.55662,2414.0,2413.9,0.00622136]
[1725232323257,10.55662,2414.0,2413.1,0.4144]
[1725232323258,0.4143,2413.6,2413.2,3.2078]
[1725232323461,0.41427,2413.8,2413.2,3.2078]
[1725232323658,0.41428,2413.7,2413.2,3.2078]
[1725232323853,3.98,2414.1,2413.2,3.62215]
[1725232324252,0.41429,2413.6,2413.4,0.00622136]
[1725232324452,0.00622136,2413.9,2413.4,0.00622136]
[1725232324664,0.41431,2413.5,2413.4,0.00622136]
[1725232325059,5.59329,2413.5,2413.4,0.00622136]
[1725232325364,0.41427,2413.8,2413.4,0.00622136]
[1725232325862,0.00622136,2413.9,2413.4,0.00622136]
[1725232326069,0.41431,2413.5,2413.4,0.00622136]
[1725232326759,4.55751,2413.5,2413.4,0.00622136]
[1725232327565,0.42047136,2413.9,2413.4,4.14942136]
[1725232327761,0.00622136,2413.9,2413.4,0.00622136]
[1725232328370,0.41428,2413.7,2413.4,0.00622136]
[1725232328557,0.00622136,2413.9,2413.4,0.00622136]
[1725232328558,0.41429,2413.6,2413.4,0.00622136]
[1725232328758,0.41429,2413.7,2413.4,0.00622136]
[1725232329064,0.4143,2413.6,2413.4,0.00622136]
[1725232329362,0.00622136,2413.9,2413.4,0.00622136]
[1725232329363,0.41428,2413.7,2413.4,0.00622136]
[1725232329664,0.00622136,2413.9,2413.4,0.00622136]
[1725232329869,0.41431,2413.5,2413.4,0.00622136]
[1725232330468,4.55751,2413.5,2413.4,0.00622136]
[1725232331263,4.1432,2413.5,2413.4,0.00622136]
[1725232331458,0.41431,2413.5,2413.4,0.00622136]
[1725232332071,0.4143,2413.6,2413.4,0.00622136]
[1725232332265,4.24964136,2413.9,2413.4,0.00622136]
[1725232332266,0.41431,2413.5,2413.4,0.00622136]
[1725232332663,4.55751,2413.5,2413.4,0.00622136]
[1725232333268,0.00622136,2413.9,2413.4,0.00622136]
[1725232333463,0.00622136,2413.9,2413.4,0.42054136]
[1725232333464,0.42047136,2413.9,2413.4,0.42054136]
[1725232333967,0.00622136,2413.9,2413.5,0.41431]
[1725232334167,0.00622136,2413.9,2413.4,0.00622136]
[1725232334365,0.41429,2413.6,2413.4,0.00622136]
[1725232334667,0.41429,2413.6,2413.4,0.42062136]
[1725232334864,0.41429,2413.6,2413.4,4.14942136]
[1725232335069,0.41431,2413.5,2413.4,0.00622136]
[1725232335270,0.4143,2413.6,2413.4,0.00622136]
[1725232335470,0.4143,2413.6,2413.5,3.2078]
[1725232335678,0.00622136,2413.9,2413.5,7.351]
[1725232335880,0.42047136,2413.9,2413.5,3.2078]
[1725232336081,0.42047136,2413.9,2413.4,0.42054136]
[1725232336082,0.00622136,2413.9,2413.8,3.2078]
[1725232337069,0.00622136,2413.9,2413.8,7.3502]
[1725232337771,0.00622136,2413.9,2413.8,7.76446]
[1725232338277,0.6322,2414.8,2413.8,13.3502]
[1725232338278,0.4141,2414.8,2413.8,13.3502]
[1725232338483,0.41403,2415.2,2414.7,0.4141]
[1725232338673,0.41401,2415.3,2414.8,0.41409]
[1725232338870,4.4425,2415.5,2414.9,3.2078]
[1725232339079,4.4425,2415.5,2415.2,3.2078]
[1725232339080,0.6025,2415.5,2415.2,3.2078]
[1725232339282,0.6025,2415.5,2415.1,0.00622136]
[1725232339575,0.00407313,2415.6,2415.4,3.2078]
[1725232339968,0.00407313,2415.6,2415.5,7.3478]
[1725232340171,0.00407313,2415.6,2415.5,3.2078]
[1725232340366,0.00407313,2415.6,2415.5,7.3478]
[1725232340871,0.00407313,2415.6,2415.5,7.76177]
[1725232341177,0.6255,2416.3,2415.9,0.4139]
[1725232341377,0.6255,2416.3,2416.1,3.2078]
[1725232341977,1.03933,2416.3,2416.1,3.2078]
[1725232342179,0.6255,2416.3,2416.1,3.2078]
[1725232343280,0.41385,2416.2,2415.7,3.2078]
[1725232343468,0.6255,2416.3,2415.7,3.62173]
[1725232343469,1.03934,2416.3,2415.7,3.62173]
[1725232343674,0.41387,2416.1,2415.7,3.2078]
[1725232343874,3.98,2416.6,2415.8,0.4139]
[1725232344074,3.98,2416.6,2415.7,3.2078]
[1725232344075,3.98,2416.6,2416.0,3.2078]
[1725232344274,0.41388,2416.0,2415.7,3.2078]
[1725232344675,3.2078,2416.4,2415.7,3.2078]
[1725232344676,0.41388,2416.1,2415.7,3.2078]
[1725232345184,0.41392,2415.8,2415.7,3.2078]
[1725232345577,4.55312,2415.8,2415.7,3.2078]
[1725232346085,4.1392,2415.8,2415.1,3.21402136]
[1725232346385,3.98,2415.9,2415.1,3.21402136]
[1725232346386,3.98,2415.9,2415.4,3.2078]
[1725232346581,0.41397,2415.5,2415.4,3.2078]
[1725232347086,3.98,2415.9,2415.4,3.2078]
[1725232347390,3.98,2415.9,2415.1,0.00622136]
[1725232347391,0.41402,2415.2,2415.1,0.00622136]
[1725232347687,0.41399,2415.4,2415.1,0.00622136]
[1725232348181,0.41402,2415.2,2415.1,0.00622136]
[1725232348388,0.41401,2415.3,2415.1,0.00622136]
[1725232348580,0.41402,2415.2,2415.1,0.00622136]
[1725232349677,4.55482,2415.2,2415.1,0.00622136]
[1725232349880,4.55482,2415.2,2414.5,3.6222]
[1725232349881,0.41407,2415.0,2414.5,3.2078]
[1725232350077,0.41407,2414.9,2414.5,3.2078]
[1725232350389,0.41406,2415.0,2414.5,3.2078]
[1725232350580,4.68622581,2415.3,2414.9,3.2078]
[1725232350887,0.00617802,2415.3,2414.9,3.21400835]
[1725232351386,0.00617802,2415.3,2414.9,7.35480835]
[1725232351582,0.00617802,2415.3,2415.2,3.2078]
[1725232351884,0.00617802,2415.3,2415.2,9.62182]
[1725232352082,0.00617802,2415.3,2415.2,13.76182]
[1725232352480,3.2078,2416.5,2415.2,13.3478]
[1725232352786,0.41385,2416.2,2415.6,3.2078]
[1725232353086,3.98,2416.6,2415.8,0.4139]
[1725232353087,0.41384,2416.3,2415.8,0.4139]
[1725232353589,0.41382,2416.4,2415.9,0.4139]
[1725232353787,0.4138,2416.5,2416.0,0.41388]
[1725232353987,1.2279,2416.7,2416.0,0.41388]
[1725232353988,0.41379,2416.6,2416.0,0.00620835]
[1725232354293,0.41379,2416.6,2416.2,3.2078]
[1725232354583,0.4138,2416.5,2416.1,0.41386]
[1725232354980,0.4138,2416.5,2416.0,0.42007835]
[1725232355185,0.41379,2416.6,2416.0,0.00620835]
[1725232355388,0.6205,2416.7,2416.0,0.00620835]
[1725232355587,0.41384,2416.3,2416.0,0.00620835]
[1725232355780,0.41385,2416.2,2416.0,0.00620835]
[1725232355984,7.61760329,2416.6,2416.0,0.00620835]
[1725232356182,3.2078,2416.6,2416.0,0.00620835]
[1725232356482,4.24228,2416.6,2416.0,0.00620835]
[1725232356684,0.41386,2416.1,2416.0,0.00620835]
[1725232357583,4.1392,2416.1,2416.0,0.00620835]
[1725232357793,3.2078,2416.3,2416.0,0.00620835]
[1725232358287,3.2078,2416.3,2416.0,0.42007835]
[1725232358481,3.2078,2416.3,2416.2,0.41385]
[1725232358992,3.2078,2416.3,2416.2,4.55225]
[1725232359291,0.41374,2416.9,2416.4,0.41381]
[1725232359882,0.41376,2416.7,2416.2,3.62164]
[1725232360083,3.2078,2417.1,2416.2,3.2078]
[1725232360291,0.41376,2416.8,2416.3,1.06382]
[1725232360990,3.2078,2417.1,2416.2,3.2078]
[1725232361190,0.41382,2416.4,2416.0,0.00620835]
[1725232361392,0.4138,2416.5,2416.0,0.42007835]
[1725232361985,0.41376,2416.8,2416.2,3.2078]
[1725232362188,0.41376,2416.8,2416.3,0.41382]
[1725232362489,0.41376,2416.7,2416.2,3.62164]
[1725232363189,4.66648363,2417.1,2416.3,0.41383]
[1725232363190,0.41375,2416.8,2416.3,0.41383]
[1725232363589,0.41376,2416.7,2416.2,3.62164]
[1725232364591,0.41376,2416.7,2416.0,0.00620835]
[1725232364592,7.63776777,2416.6,2416.0,0.00620835]
[1725232364792,0.41386,2416.1,2416.0,0.00620835]
[1725232365190,5.58773,2416.1,2416.0,0.00620835]
[1725232365584,1.03471,2416.0,2415.3,3.2078]
[1725232365904,0.41397,2415.5,2415.3,3.2078]
[1725232366285,0.41396,2415.6,2415.3,3.2078]
[1725232367280,0.41397,2415.5,2415.3,3.2078]
[1725232367480,0.00620835,2415.7,2415.3,3.2078]
[1725232367681,0.41398,2415.4,2415.3,3.2078]
[1725232367882,0.00620835,2415.7,2415.3,3.2078]
[1725232368293,0.42013835,2415.7,2415.3,3.6218]
[1725232368595,0.41396,2415.6,2415.3,3.2078]
[1725232369297,0.41398,2415.4,2415.3,3.2078]
[1725232369885,0.00620835,2415.7,2415.3,3.2078]
[1725232370392,0.41398,2415.4,2415.3,3.2078]
[1725232370887,0.41398,2415.4,2415.2,0.00620835]
[1725232370888,0.414,2415.3,2415.2,0.00620835]
[1725232371087,4.14,2415.3,2414.3,3.2078]
[1725232371293,1.03508,2415.2,2414.3,3.2078]
[1725232371497,0.41413,2414.6,2414.3,3.2078]
[1725232371707,0.41415,2414.5,2414.0,0.41422]
[1725232372084,0.00620835,2414.5,2414.1,0.41421]
[1725232372498,0.00620835,2414.5,2414.0,0.42041835]
[1725232372699,0.00620835,2414.5,2414.0,0.00620835]
[1725232373006,0.41421,2414.1,2414.0,0.00620835]
[1725232375895,3.62198,2414.3,2414.0,0.00620835]
[1725232376392,3.2078,2414.3,2414.0,0.00620835]
[1725232376896,0.64740835,2414.5,2414.1,3.2078]
[1725232377087,0.00620835,2414.5,2414.1,3.2078]
[1725232378288,0.42034835,2414.5,2414.1,3.2078]
[1725232378588,0.00620835,2414.5,2414.1,3.2078]
[1725232378795,0.00620835,2414.5,2414.1,3.8563]
[1725232378994,0.00620835,2414.5,2414.0,0.00620835]
[1725232378995,0.41421,2414.1,2414.0,0.00620835]
[1725232379500,10.55661,2414.1,2414.0,0.00620835]
[1725232379693,16.22380634,2414.1,2414.0,3.57e-06]
[1725232379890,15.85717634,2414.1,2414.0,3.57e-06]
[1725232380292,16.89270634,2414.1,2414.0,3.57e-06]
[1725232380796,5.22551,2414.1,2414.0,3.57e-06]
[1725232381597,5.22551,2414.1,2413.1,3.8934]
[1725232381598,0.41435,2413.3,2413.1,3.8934]
[1725232381903,0.41436,2413.2,2413.1,3.2078]
[1725232382401,4.144,2413.2,2412.5,1.1145]
[1725232382710,0.00620835,2413.1,2412.6,0.00620835]
[1725232383000,0.00620835,2413.1,2412.8,3.2078]
[1725232383192,0.00620835,2413.1,2412.6,4.56546835]
[1725232383394,0.00620835,2413.1,2412.7,3.62225]
[1725232383698,0.00620835,2413.1,2412.7,3.2078]
[1725232384001,0.00620835,2413.1,2412.6,0.42066835]
[1725232384199,0.00620835,2413.1,2412.7,3.62224]
[1725232384402,0.00620835,2413.1,2412.7,8.68356324]
[1725232384706,0.00620835,2413.1,2412.7,7.3526]
[1725232385303,0.00620835,2413.1,2412.7,3.2078]
[1725232385496,0.42059835,2413.1,2412.6,0.00620835]
[1725232385692,0.41445,2412.7,2412.6,0.00620835]
[1725232386402,7.76705,2412.7,2412.6,0.00620835]
[1725232387493,13.76705,2412.7,2412.6,0.00620835]
[1725232388097,7.76705,2412.7,2412.6,0.00620835]
[1725232388299,14.80318,2412.7,2412.6,0.00620835]
[1725232389598,0.41454,2412.2,2411.6,3.8574]
[1725232389799,0.41453,2412.3,2411.6,4.27203]
[1725232390205,1.03617,2412.6,2411.6,4.27203]
[1725232390206,0.41449,2412.5,2411.6,3.8574]
[1725232390406,3.2078,2412.7,2411.6,3.8574]
[1725232390604,4.37596915,2412.6,2411.9,0.00620835]
[1725232390806,4.37596915,2412.6,2411.9,3.21400835]
[1725232391106,0.41448,2412.5,2411.9,3.21400835]
[1725232391307,0.41448,2412.5,2411.9,0.00620835]
[1725232391604,3.2078,2412.7,2412.3,3.2078]
[1725232391810,0.00620835,2413.1,2412.5,0.41447]
[1725232391998,0.00620835,2413.1,2412.6,3.62226]
[1725232392200,0.00620835,2413.1,2412.6,3.2078]
[1725232392409,0.42059835,2413.1,2412.4,1.796]
[1725232392807,0.42059835,2413.1,2412.5,0.41448]
[1725232393014,0.00620835,2413.1,2412.7,0.41443]
[1725232393200,0.00620835,2413.1,2412.6,0.41446]
[1725232393399,0.00620835,2413.1,2412.5,3.62227]
[1725232393714,0.00620835,2413.1,2412.6,0.41446]
[1725232393905,0.00620835,2413.1,2412.7,0.41445]
[1725232394105,0.00620835,2413.1,2412.8,3.2078]
[1725232394710,0.00620835,2413.1,2412.9,4.5584]
[1725232395014,0.00620835,2413.1,2412.9,4.55841]
[1725232395307,0.00620835,2413.1,2413.0,4.144]
[1725232395510,0.00620835,2413.1,2412.8,3.2078]
[1725232395816,0.42058835,2413.1,2412.8,3.2078]
[1725232396006,0.41441,2413.0,2412.8,3.2078]
[1725232396202,0.41441,2412.9,2412.8,3.2078]
[1725232396403,0.41444,2412.8,2412.4,1.3815]
[1725232396602,3.82,2412.9,2412.1,3.2078]
[1725232396812,3.82,2412.7,2412.1,3.2078]
[1725232397111,3.82,2413.0,2412.5,0.41447]
[1725232397309,3.21400835,2413.1,2412.2,5.97394834]
[1725232397519,0.4144,2413.0,2412.4,3.62229]
[1725232397707,0.4144,2413.0,2412.4,3.2078]
[1725232397903,0.00620835,2413.1,2412.2,0.6985]
[1725232397904,3.82,2412.7,2412.2,0.6985]
[1725232398107,0.41453,2412.3,2411.9,0.00620835]
[1725232398700,0.41451,2412.4,2411.9,0.00620835]
[1725232398900,4.55033391,2412.6,2411.9,0.00620835]
[1725232399107,0.41448,2412.5,2411.9,0.00620835]
[1725232399314,0.41457,2412.0,2411.9,0.00620835]
[1725232399810,4.56097,2412.0,2411.9,0.00620835]
[1725232400313,18.15340585,2412.0,2410.7,3.925]
[1725232400521,7.1878,2411.7,2410.7,0.7077]
[1725232400703,0.41471,2411.2,2410.7,0.7077]
[1725232401112,4.13488034,2411.1,2410.5,0.4152]
[1725232401313,4.13488034,2411.1,2410.9,3.2078]
[1725232401515,3.2078,2412.0,2410.9,9.2078]
[1725232401725,7.39981054,2412.3,2411.2,3.2078]
[1725232401908,0.41457,2412.0,2411.2,3.2078]
[1725232402109,5.07929851,2412.1,2411.2,3.2078]
[1725232402304,0.41456,2412.1,2411.3,3.2078]
[1725232402507,3.98,2412.0,2411.3,3.2078]
[1725232402810,3.98,2412.0,2410.7,3.2078]
[1725232402811,0.00622161,2411.9,2410.7,3.2078]
[1725232403003,0.41466,2411.5,2410.7,3.9346]
[1725232403209,4.50325756,2411.8,2410.7,3.9346]
[1725232403419,3.2078,2411.7,2410.7,3.9346]
[1725232403611,3.2078,2411.6,2410.7,3.9346]
[1725232403816,4.33667433,2411.6,2410.7,3.9346]
[1725232404015,0.41468,2411.4,2410.7,3.9346]
[1725232404217,3.8952,2411.5,2410.7,3.9346]
[1725232404610,0.6874,2411.5,2410.7,3.9346]
[1725232404814,0.41461,2411.8,2411.0,3.2078]
[1725232405019,0.00622161,2411.9,2411.0,3.2078]
[1725232405211,0.4146,2411.8,2411.0,3.2078]
[1725232405405,0.00622161,2411.9,2411.0,3.2078]
[1725232405608,0.00622161,2411.9,2411.7,3.2078]
[1725232405907,0.00622161,2411.9,2411.7,7.76881]
[1725232406112,0.00622161,2411.9,2411.7,7.3542]
[1725232406304,0.00622161,2411.9,2411.7,4.1464]
[1725232406820,0.41462,2411.7,2410.8,3.2078]
[1725232407019,0.41466,2411.5,2410.8,3.2078]
[1725232407222,0.4147,2411.3,2410.8,3.2078]
[1725232407405,0.41469,2411.3,2410.8,3.2078]
[1725232407607,0.41468,2411.4,2410.8,3.2078]
[1725232407913,0.41466,2411.5,2410.8,3.2078]
[1725232408118,0.41468,2411.4,2410.8,3.2078]
[1725232408514,0.6742,2411.8,2410.8,3.62256]
[1725232408711,3.2078,2411.7,2410.8,3.2078]
[1725232409019,4.42486189,2411.5,2410.9,0.41476]
[1725232409327,3.98,2411.6,2410.8,3.2078]
[1725232409519,0.41476,2410.9,2410.8,3.2078]
[1725232409708,0.41479,2410.7,2410.6,0.00622161]
[1725232410224,0.41484,2410.4,2409.7,3.2078]
[1725232410409,0.4148,2410.7,2409.7,3.2078]
[1725232410615,1.24305483,2411.0,2409.7,3.2078]
[1725232410616,1.05841669,2411.2,2410.4,0.41484]
[1725232410812,1.47312669,2411.2,2410.4,0.41484]
[1725232411015,0.41468,2411.4,2410.6,3.62261]
[1725232411214,0.00622161,2411.2,2410.8,0.00622161]
[1725232411521,0.41476,2410.9,2410.8,0.00622161]
[1725232411915,23.48197898,2410.9,2409.9,0.6933]
[1725232412220,0.41488,2410.2,2409.7,3.2078]
[1725232412413,0.41492,2410.0,2409.4,0.6975]
[1725232412609,4.90677905,2410.1,2409.4,1.11251]
[1725232412809,3.98,2410.2,2409.6,0.41498]
[1725232413019,3.98,2410.2,2409.5,3.2078]
[1725232413020,0.00622161,2410.1,2409.8,3.2078]
[1725232413223,0.00622161,2410.1,2409.7,0.00416986]
[1725232413423,0.00622161,2410.1,2409.7,7.36156986]
[1725232413619,0.00622161,2410.1,2410.0,3.62271]
[1725232413821,0.00622161,2410.1,2409.9,3.2078]
[1725232414019,0.00622161,2410.1,2410.0,0.41491]
[1725232414220,0.00622161,2410.1,2410.0,4.1496]
[1725232414423,0.00622161,2410.1,2409.7,0.00416986]
[1725232414731,1.45232,2409.8,2409.7,9.86e-06]
[1725232414918,4.56455,2409.8,2409.0,3.2078]
[1725232415223,0.41507,2409.1,2409.0,3.2078]
[1725232415525,0.41509,2409.0,2408.6,0.4152]
[1725232415727,3.2078,2409.4,2408.5,3.2078]
[1725232415929,7.82369752,2409.4,2408.5,3.2078]
[1725232416126,0.41507,2409.1,2408.5,3.2078]
[1725232416329,0.41507,2409.1,2408.3,3.9218]
[1725232416330,3.98,2409.1,2408.3,3.9218]
[1725232416518,0.4151,2408.9,2408.3,0.714]
[1725232416720,0.00622161,2408.8,2408.3,0.714]
[1725232417028,0.00622161,2408.8,2408.1,0.7117]
[1725232417326,0.00622161,2408.8,2408.7,0.41514]
[1725232417523,0.41506,2409.2,2408.4,5.69472676]
[1725232417828,3.2078,2409.3,2408.3,3.2078]
[1725232418124,8.36482379,2409.1,2408.3,3.2078]
[1725232418315,0.41509,2409.0,2408.3,3.2078]
[1725232418515,0.42132161,2408.9,2408.3,3.2078]
[1725232418727,0.00622161,2408.9,2408.3,3.2078]
[1725232418932,0.41512,2408.8,2408.3,3.2078]
[1725232419122,0.00622161,2408.9,2408.2,0.00622161]
[1725232419318,9.22522428,2408.8,2408.2,0.00622161]
[1725232419934,0.41515,2408.7,2408.2,0.00622161]
[1725232420227,0.00622161,2408.9,2408.2,0.00622161]
[1725232420228,0.00622161,2408.9,2408.7,0.41513]
[1725232420527,0.00622161,2408.9,2408.6,3.62294]
[1725232420729,0.00622161,2408.9,2408.6,3.2078]
[1725232421627,0.00622161,2408.9,2408.7,4.1512]
[1725232421826,0.00622161,2408.9,2408.6,3.2078]
[1725232422424,0.00622161,2408.9,2408.8,0.41512]
[1725232422632,3.8925,2409.9,2409.2,0.41504]
[1725232422817,3.8925,2409.9,2408.7,10.14269108]
[1725232422818,3.8925,2409.9,2409.4,3.2078]
[1725232423021,4.30744,2409.9,2409.4,3.2078]
[1725232423331,3.83,2409.5,2409.1,3.2078]
[1725232423830,3.83622161,2409.5,2409.1,3.21402161]
[1725232424129,0.00622161,2409.5,2409.1,3.21402161]
[1725232424428,0.00622161,2409.5,2409.4,3.2078]
[1725232424925,0.00622161,2409.5,2409.4,7.3582]
[1725232425130,0.00622161,2409.5,2409.4,3.2078]
[1725232425723,0.00622161,2409.5,2409.4,3.62282]
[1725232425920,0.00622161,2409.5,2409.4,14.18842]
[1725232426127,0.00622161,2409.5,2409.4,13.77322]
[1725232426525,0.7156,2410.6,2409.9,0.41492]
[1725232426526,0.41482,2410.6,2409.9,0.41492]
[1725232426728,4.6832,2410.9,2410.1,3.2078]
[1725232426921,4.6832,2410.9,2409.5,1.3585]
[1725232426922,0.7032,2410.9,2410.0,3.2078]
[1725232427134,4.57343574,2410.8,2410.0,3.2078]
[1725232427534,0.00622161,2410.6,2410.0,3.2078]
[1725232427725,0.00622161,2410.6,2410.4,3.2078]
[1725232427925,0.00622161,2410.6,2410.5,3.2078]
[1725232428122,4.15502161,2410.6,2410.3,0.00622161]
[1725232428328,4.1488,2410.5,2410.3,0.00622161]
[1725232428530,4.56363,2410.5,2410.3,0.00622161]
[1725232428728,4.56364,2410.4,2410.3,0.00622161]
[1725232428929,0.41484,2410.4,2410.3,0.00622161]
[1725232429132,4.56364,2410.4,2410.3,0.00622161]
[1725232429637,0.4149,2410.1,2409.5,0.6831]
[1725232429932,0.4149,2410.1,2409.6,3.2078]
[1725232430133,3.98,2410.2,2409.6,3.2078]
[1725232430335,0.41496,2409.8,2409.3,3.2078]
[1725232430640,4.50717672,2409.7,2409.3,3.21402161]
[1725232430936,0.41501,2409.5,2409.3,3.21402161]
[1725232431138,5.30084802,2409.9,2409.3,0.00622161]
[1725232431139,0.41502,2409.4,2409.3,0.00622161]
[1725232431624,0.41502,2409.4,2408.6,3.927]
[1725232431625,8.82049946,2409.4,2408.6,3.927]
[1725232431823,0.41503,2409.4,2408.8,3.2078]
[1725232432024,3.98,2409.1,2408.0,3.2078]
[1725232432227,0.41516,2408.6,2408.0,3.2078]
[1725232432434,1.03768,2409.1,2408.2,3.2078]
[1725232432435,4.57024317,2409.0,2408.2,3.2078]
[1725232432632,0.00622161,2408.5,2408.2,3.2078]
[1725232432843,0.00622161,2408.5,2408.4,0.41519]
[1725232433030,0.41499,2409.6,2408.8,0.41511]
[1725232433330,0.41499,2409.6,2408.5,0.20335255]
[1725232433331,0.415,2409.6,2409.1,3.2078]
[1725232433531,0.415,2409.6,2408.7,3.2078]
[1725232433735,4.6751,2409.8,2409.0,3.2078]
[1725232434041,3.98,2410.2,2409.3,3.2078]
[1725232434342,0.00622161,2410.0,2409.7,3.2078]
[1725232434723,0.00622161,2410.0,2409.8,3.2078]
[1725232435726,0.00622161,2410.0,2409.7,3.2078]
[1725232435928,0.42114161,2410.0,2409.7,3.2078]
[1725232436339,0.00622161,2410.0,2409.7,3.2078]
[1725232436634,0.00622161,2410.0,2409.8,3.2078]
[1725232437831,0.00622161,2410.0,2409.9,4.1496]
[1725232438232,0.00622161,2410.0,2409.9,10.1496]
[1725232438526,0.00622161,2410.0,2409.9,10.56453]
[1725232438933,0.00622161,2410.0,2409.9,4.1496]
[1725232439328,0.00622161,2410.0,2409.8,3.2078]
[1725232440247,4.15582161,2410.0,2409.8,3.2078]
[1725232440533,4.15582161,2410.0,2409.5,0.00622161]
[1725232440534,0.00622161,2410.0,2409.9,3.2078]
[1725232441037,0.00622161,2410.0,2409.6,0.41497]
[1725232441038,0.00622161,2410.0,2409.6,3.2078]
[1725232441234,0.00622161,2410.0,2409.9,3.2078]
[1725232441537,0.42114161,2410.0,2409.5,0.00622161]
[1725232442344,3.2078,2409.6,2408.7,3.2078]
[1725232442642,3.2078,2409.6,2408.5,3.623]
[1725232442643,8.3596532,2409.5,2408.5,3.623]
[1725232442851,4.3796532,2409.5,2409.1,3.2078]
[1725232443132,0.00622161,2410.0,2409.5,0.41499]
[1725232443326,0.42114161,2410.0,2409.3,0.41502]
[1725232443527,0.00622161,2410.0,2409.5,0.00622161]
[1725232443731,0.42113161,2410.0,2409.5,0.00622161]